Cogmind - Beta 13 @@@ ROGUE MODE // 2024.03.14 @ 11:55:06 Player: TheLargestBoi Result: Self-destructed Performance ------------- Evolutions (1) 500 Regions Visited (2) 400 Robots Destroyed (35) 175 Value Destroyed (578) 578 Prototype IDs (2) 40 Alien Tech Used (0) 0 Bonus (0) 0 TOTAL SCORE: 1693 Bonus ------- None Cogmind --------- Core Integrity 266/400 Matter 232/300 Energy 100/100 System Corruption 0% Temperature Cool (0) Movement Walking (190) Ox1 Location -9/Materials Parts ------- > --- POWER (1) -------- (None) > --- PROPULSION (2) --- Aluminum Leg > --- UTILITY (4) ------ Medium Storage Unit Visual Processing Unit Signal Interpreter > --- WEAPON (2) ------- Shotgun Maul > --- INVENTORY (10) --- Aluminum Leg Aluminum Leg Aluminum Leg Structural Scanner Salvage Targeting Computer ECM Suite Shield Generator Maul Peak State ------------ > --- POWER ------------ Light Ion Engine > --- PROPULSION ------- Aluminum Leg Aluminum Leg > --- UTILITY ---------- Medium Storage Unit Visual Processing Unit Sensor Array Signal Interpreter > --- WEAPON ----------- Maul Maul > --- INVENTORY -------- Light Ion Engine Aluminum Leg Structural Scanner Salvage Targeting Computer ECM Suite Shield Generator Shotgun Shotgun [Rating: 13] Favorites ----------- Power Light Ion Engine Engine Light Ion Engine Propulsion Aluminum Leg Leg Aluminum Leg Utility Visual Processing Unit Device Sensor Array Storage Medium Storage Unit Processor Visual Processing Unit Weapon Maul Ballistic Gun Shotgun Ballistic Cannon Light Cannon Impact Weapon Maul Build | -11 -10 -9 ------- Run | Yrd Mat Mat Slots Evolved 2 | . . 2 Power . | . . . Propulsion . | . . . Utility 2 | . . 2 Weapon . | . . . Parts Attached 26 | 7 10 9 Power 3 | 1 1 1 Engine 3 | 1 1 1 Core . | . . . Reactor . | . . . Propulsion 3 | 2 . 1 Treads . | . . . Leg 3 | 2 . 1 Wheel . | . . . Hover . | . . . Flight . | . . . Utility 8 | 2 2 4 Device 4 | 1 . 3 Storage 2 | 1 1 . Processor 2 | . 1 1 Hackware . | . . . Protection . | . . . Artifact . | . . . Weapon 12 | 2 7 3 Energy Gun . | . . . Energy Cannon . | . . . Ballistic Gun 7 | 2 3 2 Ballistic Cannon 1 | . 1 . Launcher . | . . . Special Weapon . | . . . Impact Weapon 4 | . 3 1 Slashing Weapon . | . . . Piercing Weapon . | . . . Special Melee Weapon . | . . . Unidentified Prototypes . | . . . Parts Lost 6 | . . 6 Power 2 | . . 2 Propulsion 2 | . . 2 Utility 1 | . . 1 Weapon 1 | . . 1 Highest Loss Streak 3 | . . 3 To Critical Strikes . | . . . Average Slot Usage (%) 98 | . 100 96 Engine 12 | . 14 9 Leg 25 | . 28 21 Device 5 | . 2 10 Storage 12 | . 14 11 Processor 14 | . 11 22 Ballistic Gun 7 | . 5 11 Impact Weapon 17 | . 21 9 Naked Turns . | . . . Heaviest Build 20 | 12 19 20 Greatest Support 20 | 20 20 20 Greatest Overweight (x) 1 | . . 1 Average Overweight (x) . | . . . Largest Inventory Capacity 10 | 8 10 10 Average Capacity 9 | 7 9 10 Most Carried 10 | 4 10 9 Average Carried 7 | 2 8 7 Final Capacity 10 | 8 10 10 Final Carried 10 | 4 10 8 Class Distribution -------------------- 70% | Mutant 17% | Skirmisher 12% | Assassin Dominant Class ---------------- Mutant | -10/Materials Skirmisher | -9/Materials Resources | -11 -10 -9 ----------- Run | Yrd Mat Mat Matter Collected 649 | 197 325 127 Remotely . | . . . Salvage Created 934 | 146 486 302 Parts 52 | 14 25 13 Haulers Intercepted 2 | . 2 . Recyclers Shooed 3 | . 2 1 Parts Field Recycled . | . . . Retrieved Matter . | . . . Parts Self-Destructed . | . . . Prevented . | . . . Kills | -11 -10 -9 ------- Run | Yrd Mat Mat Combat Hostiles Destroyed 20 | . 9 11 Melee 5 | . 2 3 Guns 9 | . 5 4 Classes Destroyed 9 | 2 5 2 Worker 2 | . 2 . Builder 1 | . . 1 Tunneler 4 | 4 . . Hauler 2 | . 2 . Recycler 2 | 1 1 . Watcher 4 | . 3 1 Swarmer 11 | . 5 6 Grunt 8 | . 4 4 Sentry 1 | . . 1 Best Kill Streak 7 | 3 5 7 Combat Bots Only 3 | . 3 3 Max Kills in Single Turn 1 | 1 1 1 Gunslinging . | . . . Exploded . | . . . Melee 1 | . 1 1 Uniques/NPCs Destroyed . | . . . Combat | -11 -10 -9 -------- Run | Yrd Mat Mat Hostile Shots Fired 119 | . 22 97 Missed 40 | . 8 32 Damage Taken 894 | . 108 786 Core 178 | . 44 134 Absorbed by Shields . | . . . Core Remaining (%) 91 | 100 82 . Volleys Fired 49 | 12 19 18 Largest 2 | 2 2 2 Hottest 46 | 40 46 46 Shots Fired 85 | 24 26 35 Gun 85 | 24 26 35 Cannon . | . . . Launcher . | . . . Special . | . . . Kinetic 85 | 24 26 35 Thermal . | . . . Explosive . | . . . Electromagnetic . | . . . Robot Hit Streak 14 | 8 3 14 Robot Miss Streak 6 | 1 6 4 Penetration Max . | . . . Secondary Targets . | . . . Shots Hit Robots 84 | 18 27 39 Core Hits 38 | 7 13 18 Critical Kills 1 | . 1 . Critical Parts Destroyed 9 | . 6 3 Critical Strikes 10 | . 7 3 Destroy 2 | . 1 1 Smash 8 | . 6 2 Melee Attacks 41 | . 14 27 Impact 41 | . 14 27 Slashing . | . . . Piercing . | . . . Sneak Attacks 5 | . 4 1 Combat Hostiles 2 | . 2 . Follow-up Attacks 4 | . 2 2 Damage Inflicted 2200 | 179 834 1187 Guns 930 | 179 241 510 Cannons . | . . . Explosions . | . . . Melee 1270 | . 593 677 Ramming . | . . . Kinetic 930 | 179 241 510 Thermal . | . . . Explosive . | . . . Electromagnetic . | . . . Impact 1270 | . 593 677 Slashing . | . . . Piercing . | . . . Highest Corruption . | . . . Average Corruption . | . . . Corruption Purged . | . . . Corruption Blocked . | . . . Overload Shots . | . . . Overflow Damage 670 | . 485 185 Projectiles . | . . . Explosions . | . . . Melee 670 | . 485 185 Knockbacks 3 | . 1 2 Impact 3 | . 1 2 Kinetic . | . . . Secondary . | . . . Self-Inflicted Damage . | . . . Shots . | . . . Rammed . | . . . Targets Rammed 1 | . . 1 Kicked 1 | . . 1 Crushed . | . . . Highest Temperature 14 | . . 14 Average Temperature 4 | . . 4 Received Heat Transfer 369 | . 9 360 Siege Activations . | . . . Robots Corrupted . | . . . Combat Hostiles . | . . . Parts Fried 12 | . 8 4 Impact Corruptions 25 | . 13 12 Robots Melted . | . . . Combat Hostiles . | . . . Parts Melted . | . . . Heat Transferred . | . . . Parts Sabotaged . | . . . Parts Stolen . | . . . Parts Stripped . | . . . Power Chain Reactions . | . . . Alert | -11 -10 -9 ------- Run | Yrd Mat Mat Peak Influence 295 | 25 258 295 Initial 16 | . 16 9 Average 105 | 9 90 154 Maximum Alert Level 1 | . 1 1 Low Security (%) 80 | 100 89 59 Level 1 19 | . 10 40 Level 2 . | . . . Level 3 . | . . . Level 4 . | . . . Level 5 . | . . . High Security . | . . . Max Security . | . . . Squads Dispatched 2 | . 2 . Investigation 1 | . 1 . Extermination . | . . . Reinforcement 1 | . 1 . Assault . | . . . Garrison . | . . . Intercept . | . . . Searches Triggered . | . . . Construction Impeded . | . . . Haulers Reinforced . | . . . Active Scanning Responses . | . . . Cargo Convoy Interrupts . | . . . Stealth | -11 -10 -9 --------- Run | Yrd Mat Mat Distress Signals 8 | . 2 6 Communications Jammed . | . . . Distress Signals . | . . . Times Spotted 39 | . 14 25 Peak Tracking Total 5 | . 4 5 Tactical Retreats 4 | . 1 3 Traps | -11 -10 -9 ------- Run | Yrd Mat Mat Traps Triggered 1 | . 1 . Indirectly . | . . . Trap Hack Attempts . | . . . Triggered . | . . . Disarmed . | . . . Reprogrammed . | . . . Reused . | . . . Traps Extracted . | . . . Installed . | . . . Triggered . | . . . Machines | -11 -10 -9 ---------- Run | Yrd Mat Mat Machines Disabled 1 | . 1 . Max in Single Turn 1 | . 1 . Machines Repaired . | . . . Machines Dismantled . | . . . Machines Sabotaged . | . . . Overloaded Fab Kills . | . . . Hacking | -11 -10 -9 --------- Run | Yrd Mat Mat Machines Accessed 9 | . 8 1 Terminals 7 | . 6 1 Fabricators . | . . . Repair Stations . | . . . Recycling Units 2 | . 2 . Scanalyzers . | . . . Garrison Access . | . . . Total Hacks 25 | . 22 3 Successful 13 | . 12 1 Failed 12 | . 10 2 Catastrophic 3 | . 3 . Database Lockouts . | . . . Manual 18 | . 18 . Terminals 23 | . 20 3 Fabricators . | . . . Repair Stations . | . . . Recycling Units 2 | . 2 . Scanalyzers . | . . . Garrison Access . | . . . Terminal Hacks 8 | . 7 1 Robot Analysis 2 | . 1 1 Prototype ID Bank 1 | . 1 . Level Access Points 1 | . 1 . Terminal Index 1 | . 1 . Locate Traps 1 | . 1 . Patrol Status 1 | . 1 . Recall Investigation 1 | . 1 . Fabricator Hacks . | . . . Repair Station Hacks . | . . . Recycling Unit Hacks 1 | . 1 . Report Inventory 1 | . 1 . Scanalyzer . | . . . Garrison Access Hacks . | . . . Unauthorized Hacks 4 | . 4 . Terminals 3 | . 3 . Assimilate 1 | . 1 . Botnet 1 | . 1 . Operators 1 | . 1 . Fabricators . | . . . Repair Stations . | . . . Recycling Units 1 | . 1 . Recyclers 1 | . 1 . Scanalyzers . | . . . Garrison Access . | . . . Data Cores Recovered . | . . . Used . | . . . Hacking Detections 7 | . 6 1 Full Trace Events . | . . . Feedback Events . | . . . Feedback Blocked . | . . . Robot Schematics Acquired . | . . . Robots Built . | . . . Authchips . | . . . Time . | . . . Total Robot Build Rating . | . . . Part Schematics Acquired . | . . . Parts Built . | . . . Authchips . | . . . Time . | . . . Total Part Build Rating . | . . . Parts Repaired . | . . . Time . | . . . Parts Recycled . | . . . Recycled Matter . | . . . Retrieved Matter . | . . . Retrieved Components . | . . . Parts Scanalyzed . | . . . Part Schematics Acquired . | . . . Parts Damaged . | . . . Bothacking | -11 -10 -9 ------------ Run | Yrd Mat Mat Used RIF Installer . | . . . Robots Hacked . | . . . Non-combat . | . . . Combat . | . . . Robot Hacks Applied . | . . . Relay Couplers Released . | . . . Fabnet Peak Effective % . | . . . Robots Rewired . | . . . Allies Hacked . | . . . Hacks Repelled . | . . . Allies | -11 -10 -9 -------- Run | Yrd Mat Mat Total Allies . | . . . Largest Group . | . . . Highest-Rated Group . | . . . Highest-Rated Ally . | . . . Total Orders . | . . . Ally Attacks . | . . . Total Damage . | . . . Kills . | . . . Allies Corrupted . | . . . Allies Melted . | . . . Intel | -11 -10 -9 ------- Run | Yrd Mat Mat Robot Analysis Total 2 | . 1 1 Derelict Logs Recovered . | . . . Drone Launches . | . . . Drone Recoveries . | . . . Exploration | -11 -10 -9 ------------- Run | Yrd Mat Mat Turns Passed 1709 | 113 1040 556 Spaces Moved 968 | 58 691 219 Core 6 | 6 . . Treads . | . . . Legs 962 | 52 691 219 Wheels . | . . . Hover . | . . . Flight . | . . . Fastest Speed 50 | 50 120 120 Average Speed 119 | 112 120 121 Slowest Speed 190 | 120 120 190 Overloaded Moves . | . . . Propulsion Burnouts . | . . . Robots Hopped . | . . . Cave-ins Triggered . | . . . Exploration Rate (%) 45 | 5 96 34 Regions Visited 2 Branch Regions . Pre-discovered Areas . | . . . Known Exits Taken 1 | . 1 . Unknown Exits Taken 1 | 1 . . Scrap Searched . | . . . Spaces Dug 5 | . . 5 Terrain Destroyed 5 | . . 5 Melee 5 | . . 5 Projectile . | . . . AOE . | . . . Terrain Rammed . | . . . Walls Destroyed . | . . . Machines Disabled . | . . . Actions | -11 -10 -9 --------- Run | Yrd Mat Mat Total 1361 | 80 857 424 Wait 250 | . 97 153 Move 966 | 57 690 219 Hop . | . . . Pick Up 23 | 4 17 2 Fast Attach 9 | 7 1 1 Attach 4 | . . 4 Detach . | . . . Swap 13 | . 9 4 Drop 14 | . 14 . Fire 49 | 12 19 18 Melee 32 | . 10 22 Ram . | . . . Kick 1 | . . 1 Crush . | . . . Escape Stasis . | . . . Rewire . | . . . Trap . | . . . Miscellaneous . | . . . Route ------- -11/Scrapyard -10/Materials (discovered 4 exits: *Mat x3 / [*Min]) -9/Materials (discovered 2 exits: *Min x2) History --------- Turn | Location | Event 13 | -11/Scrapyard | Discovered new exit (range 16) 114 | -11/Scrapyard | Entered Materials 357 | -10/Materials | Build established: Mutant 437 | -10/Materials | Discovered new exit (range 17) 862 | -10/Materials | Discovered new exit (range 6) 942 | -10/Materials | Discovered new exit (range 18) 1041 | -10/Materials | Discovered new exit (range 7) 1072 | -10/Materials | Identified exit to Materials 1154 | -10/Materials | Entered another Materials area 1154 | -9/Materials | Evolved 2 slots: Utility x2 1400 | -9/Materials | Discovered new exit (range 12) 1589 | -9/Materials | Identified exit to Mines 1692 | -9/Materials | Discovered exit to Mines (range 18) 1710 | -9/Materials | Self-destructed Last Messages --------------- 01660_ K-01 Serf collects debris. 01660_ Acquired 35 matter. 01662_ R-06 Scavenger collects Structural Scanner. 01663_ K-01 Serf collects debris. 01667_ R-06 Scavenger collects Wheel. 01667_ K-01 Serf collects debris. 01672_ R-06 Scavenger collects Particle Gun. 01680_ W-16 Scout sends out distress signal. 01684_ K-01 Serf collects debris. 01689_ Shotgun destroyed. 01690_ K-01 Serf cleans the Hadron Collector. 01692_ EXIT=FOUND: MINES 01693_ G-34 Mercenary destroyed. 01700_ Aluminum Leg destroyed. 01706_ Critical hit (Burn: +37). 01707_ R-06 Scavenger collects Heat Sink. 01708_ Sensor Array destroyed. 01710_ W-16 Scout sends out distress signal. 01710_ R-06 Scavenger collects Sml. Laser. Map ----- +----------------------------------------------------+ | ???????????????????????????######+## ????????? | | ???????????????????????????? #???????? | | ???????????????????????????? ^ +???????? | | ????????????????????????????? ""#???????? | | ??????????????????????? ??????# T"#???????? | | ??????????????????????? ??????# ""#???????? | | ??????????????????????? ??????# #???????? | | ??????????????????????? ?????# ! #???##### | | ??????????????????????? ?????# #???#""!" | | ??????????????????????? ?????# """" #???# "!" | | ???????????????????????# ?????# ^"""" ##### = | | ???????????????????????# ?????# """" % | | ???????????????????????# ?????# % > | | ???????????????????????# ?????# % | | ???????????????????????# ?????# ##### | | ???????????????????????# ###### ### ##???##### | | ???????????????????????# #?# #????????? | | ???????????????????????+ #?# #????????? | | ???????????????????????# #?# #????????? | | ???????????????????????# ########?# #????????? | | ???????????????????????# #???????? =????????? | | ???????????????????????# r #???????# #???????? | | ??????????????????????##%r ##??????/ [ #???????? | | ??????????# ####### #??????# #???????? | | ??????????# g #??????# #???????? | | ??????????# @ + """?###+###???????? | | ??????????# Y # "" #?????????????? | | ??????????# ####### ! #? """ #?????????????? | | ??????????## ????????## Y ##?? "" ??????????????? | | ???????????????????????# #????"" ??????????????? | | ???????????????????????# #????? ??????????????? | | ???????????????????????# #???????#?????????????? | | ???????????????????????# #?????????????????????? | | ???????????????????????# #?????????????????????? | | ???????????????????????# #?????????????????????? | | ??????????????????????? ?????????????????????? | | ??????????????????????? ?????????????????????? | | ??????????????????????? > ?????????????????????? | | ??????????????????????? ?????????????????????? | | ??????????????????????? ?????????????????????? | | ???????????????????????# #?????????????????????? | | ???????????????????????? ??????????????????????? | | ???????????????????????? w ??????????????????????? | | ?????????????????????????????????????????????????? | | ?????????????????????????????????????????????????? | | ?????????????????????????????????????????????????? | | ?????????????????????????????????????????????????? | | ?????????????????????????????????????????????????? | | ?????????????????????????????????????????????????? | | ?????????????????????????????????????????????????? | +----------------------------------------------------+ Best States ------------- Heat Dissipation 28 Energy Generation 10 Energy Capacity 125 Matter Stores 300 Matter Capacity 300 Sight Range 18 Robot Scan Range 14 Terrain Scan Range 16 Terrain Scan Density 10 Evasion (%) 55 Item Schematics ----------------- None Robot Schematics ------------------ None Fabricated ------------ Nothing Alien Tech Used ----------------- None Achievements -------------- None Challenges ------------ None Game ------ Seed PotentialMomentumSpecial Manual? 0 Play Time 00:17:51 Cumulative 21.6 hours Start 2024.03.14 @ 11:40:16 End 2024.03.14 @ 11:55:06 Sessions 1 Manual Loads 0 Difficulty Rogue Special Mode None Game No. 45 Rogue 45 Adventurer 0 Explorer 0 Win Type - Total 1 Types 1/0/0/0/0/0/0/0/0 Lore% 15 Gallery% 26 Achievement% 32 Wizard Run 0 Options --------- Layout 1 ASCII 0 Keyboard 0 Movement Numpad Keybinds 0 Fullscreen 1 Font 24/Smallcaps Map View 50x35 Zoom Use 0% Tactical HUD 1 Map Filters NONE Filters NONE Steam 1 RUN: 9477a1d9-9d0e-4a09-96ca-00b385acb277